bitfinex/quotes_ETHUSD_20240917
["timestamp","ask_amount","ask_price","bid_price","bid_amount"]
[1726589304058,2.4348,2392.9,2392.3,3.0]
[1726589305194,1.30953656,2392.8,2392.2,0.43700061]
[1726589305373,2.2853,2392.7,2392.1,7.18035]
[1726589305787,2.2853,2392.7,2392.2,4.18024]
[1726589305960,2.2853,2392.7,2392.3,3.0]
[1726589306357,2.2853,2392.7,2392.4,0.06481214]
[1726589306628,2.2853,2392.7,2392.4,4.24460214]
[1726589306907,2.2853,2392.7,2392.5,7.17969]
[1726589307265,2.4684,2392.9,2392.6,7.24430191]
[1726589307485,2.4684,2392.9,2392.7,3.0]
[1726589307687,2.4684,2392.9,2392.6,0.06475191]
[1726589307897,2.4684,2392.9,2392.8,0.06469169]
[1726589308062,2.4684,2392.9,2392.7,0.0647218]
[1726589308264,2.4684,2392.9,2392.6,3.0]
[1726589308497,2.4684,2392.9,2392.8,0.06469169]
[1726589308700,2.4684,2392.9,2392.7,0.0647218]
[1726589309000,2.4684,2392.9,2392.8,0.06469169]
[1726589309214,2.4684,2392.9,2392.6,3.0]
[1726589309500,2.4588,2393.2,2392.8,0.06469169]
[1726589309707,2.4588,2393.2,2393.0,3.0]
[1726589310018,2.4588,2393.2,2393.1,7.24328137]
[1726589310563,2.4588,2393.2,2393.1,0.06460137]
[1726589310768,2.4588,2393.2,2393.1,3.06460137]
[1726589311012,2.4588,2393.2,2393.1,0.06460137]
[1726589311013,7.01413366,2393.2,2393.1,0.06460137]
[1726589311169,2.4862,2393.0,2392.3,0.4369918]
[1726589311503,2.4862,2392.8,2392.3,0.4369918]
[1726589311910,2.4862,2392.7,2392.3,0.4369918]
[1726589312416,3.04048773,2392.7,2392.3,0.4369918]
[1726589312583,4.35368091,2392.7,2392.3,0.4369918]
[1726589313208,2.4366,2392.6,2392.1,4.18042]
[1726589313512,3.74979318,2392.6,2392.3,4.18004]
[1726589313668,2.4366,2392.6,2392.4,4.17988]
[1726589313874,2.4366,2392.6,2392.1,4.61651026]
[1726589314207,2.4366,2392.6,2392.4,7.17973]
[1726589314563,2.4366,2392.6,2392.4,3.0]
[1726589314865,2.4366,2392.6,2392.5,3.0]
[1726589315108,2.4366,2392.6,2392.5,7.17972]
[1726589315896,2.4366,2392.6,2392.3,3.0]
[1726589316620,2.98592773,2392.6,2391.8,4.38880981]
[1726589316795,3.71729318,2392.5,2392.0,4.18051]
[1726589316967,2.4041,2392.4,2392.0,4.1805]
[1726589317164,2.4041,2392.4,2392.0,8.36103]
[1726589317580,2.4041,2392.4,2392.0,4.1805]
[1726589317777,2.4041,2392.4,2392.1,3.0]
[1726589318015,2.4041,2392.4,2392.1,4.1804]
[1726589318316,2.4041,2392.4,2392.1,3.0]
[1726589318605,2.4041,2392.4,2392.2,0.05538865]
[1726589318606,2.95017773,2392.4,2392.2,0.05538865]
[1726589318990,2.95017773,2392.4,2391.9,11.36143]
[1726589319297,2.4041,2392.4,2392.3,0.05535853]
[1726589319496,2.4041,2392.4,2391.6,4.22091676]
[1726589319497,2.4041,2392.4,2391.7,4.18105]
[1726589319671,3.71729318,2392.4,2392.3,0.05535853]
[1726589320006,2.4416,2392.3,2391.6,4.1812]
[1726589320211,2.4416,2392.1,2391.6,4.1812]
[1726589320382,2.4416,2392.1,2391.7,4.2365893]
[1726589321017,2.4416,2392.1,2391.9,4.18067]
[1726589321201,2.4416,2392.1,2392.0,3.0]
[1726589321370,2.4416,2392.1,2392.0,3.05550601]
[1726589321711,1.31362474,2392.4,2392.0,0.05550601]
[1726589321712,2.4638,2392.4,2392.0,0.05550601]
[1726589322210,2.84154247,2392.4,2392.0,0.05550601]
[1726589322415,4.15516721,2392.4,2392.0,0.05550601]
[1726589322566,2.3619,2392.3,2392.0,0.05550601]
[1726589322913,2.3619,2392.2,2392.0,0.05550601]
[1726589323406,2.3619,2392.2,2392.1,0.05588777]
[1726589323605,2.3619,2392.2,2391.7,4.18112]
[1726589323606,2.81021266,2392.2,2391.7,4.18112]
[1726589323814,2.81021266,2392.2,2392.1,0.05588777]
[1726589324304,2.81021266,2392.2,2391.8,3.0]
[1726589324514,2.3619,2392.2,2392.1,0.05588777]
[1726589325111,2.3619,2392.2,2391.8,11.3618]
[1726589325412,2.3619,2392.2,2392.1,0.05588777]
[1726589325565,2.3619,2392.2,2392.0,3.0]
[1726589325773,2.3619,2392.2,2392.1,0.05588777]
[1726589325972,2.3619,2392.2,2391.9,7.18076]
[1726589326169,2.3619,2392.2,2392.0,0.0559179]
[1726589327718,3.73562474,2392.1,2392.0,0.0559179]
[1726589327915,4.16548416,2392.1,2392.0,0.0559179]
[1726589328213,2.422,2392.0,2391.4,4.18164]
[1726589328387,3.73447053,2392.0,2391.4,4.18164]
[1726589328587,3.73447053,2392.0,2391.3,4.18182]
[1726589328875,3.73447053,2392.0,2391.4,3.0]
[1726589329287,2.422,2391.9,2391.4,3.0]
[1726589329524,2.422,2391.9,2391.1,6.18202]
[1726589329525,2.422,2391.8,2391.2,7.18198]
[1726589329676,2.422,2391.8,2391.4,3.0]
[1726589330023,2.422,2391.8,2391.3,3.0]
[1726589331415,2.422,2391.8,2391.3,7.1818]
[1726589333528,2.422,2391.8,2391.3,3.0]
[1726589334023,2.422,2391.8,2391.0,3.0]
[1726589334024,2.4095,2391.7,2391.0,3.0]
[1726589334204,2.4095,2391.7,2391.2,3.0]
[1726589334413,2.4095,2391.7,2391.3,3.0]
[1726589336518,2.4095,2391.7,2391.4,0.05245341]
[1726589337950,2.4095,2391.7,2391.5,3.0]
[1726589338120,2.4095,2391.7,2391.4,7.23402341]
[1726589338324,2.4095,2391.7,2391.6,0.05239313]
[1726589338536,2.4095,2391.7,2391.5,0.05242327]
[1726589338744,2.4095,2391.7,2391.6,0.05239313]
[1726589339267,2.4095,2391.7,2391.6,0.05258456]
[1726589339427,2.4095,2391.7,2391.4,7.18157]
[1726589339631,2.4095,2391.7,2391.6,0.05258456]
[1726589339955,2.4095,2391.7,2391.5,0.0526147]
[1726589340124,2.65045,2391.7,2391.6,0.05258456]
[1726589340514,2.65045,2391.7,2391.3,3.0]
[1726589340715,2.4095,2391.7,2391.3,3.0]
[1726589341262,2.4095,2391.7,2391.4,0.05264485]
[1726589343360,2.4095,2391.7,2391.5,4.18136]
[1726589343528,2.4095,2391.7,2391.5,3.0]
[1726589343860,2.4095,2391.7,2391.6,0.05258456]
[1726589346264,2.4095,2391.7,2391.6,3.0]
[1726589346569,2.4095,2391.7,2391.6,0.05258456]
[1726589346863,2.4095,2391.7,2391.4,3.0]
[1726589347065,2.4095,2391.7,2391.6,0.05258456]
[1726589347226,2.4095,2391.7,2391.5,0.0526147]
[1726589347431,2.4095,2391.7,2391.6,0.05258456]
[1726589347912,2.4095,2391.7,2391.4,7.18164]
[1726589348046,2.4095,2391.7,2391.6,0.05258456]
[1726589348245,2.4095,2391.7,2391.5,0.05278167]
[1726589348449,2.4095,2391.7,2391.6,4.23405153]
[1726589348777,2.4095,2391.7,2391.6,0.05275153]
[1726589349184,2.4095,2391.7,2391.4,3.0]
[1726589349341,2.4095,2391.7,2391.6,0.05275153]
[1726589349540,2.4095,2391.7,2391.5,0.05274907]
[1726589349737,2.4095,2391.7,2391.6,0.05271893]
[1726589350377,2.4095,2391.7,2391.6,3.0]
[1726589350745,2.4095,2391.7,2391.6,0.05271893]
[1726589353797,2.4095,2391.7,2391.6,3.05271893]
[1726589354661,2.4095,2391.7,2391.6,0.05271893]
[1726589355265,2.65045,2391.7,2391.6,0.05271893]
[1726589355469,2.65045,2391.7,2391.4,3.0]
[1726589355650,2.4095,2391.7,2391.6,0.05271893]
[1726589355847,2.4095,2391.7,2391.5,0.05274907]
[1726589356104,2.4095,2391.7,2391.6,0.05271893]
[1726589356673,2.4095,2391.7,2391.5,3.0]
[1726589356890,2.4095,2391.7,2391.6,0.05271893]
[1726589359154,2.4095,2391.7,2391.6,3.0]
[1726589359482,2.4095,2391.7,2391.6,0.05271893]
[1726589359999,2.4095,2391.7,2391.4,7.18157]
[1726589360180,2.4095,2391.7,2391.6,0.05271893]
[1726589360382,2.78151488,2391.7,2391.6,0.05271893]
[1726589360690,4.09216364,2391.7,2391.3,3.0]
[1726589361159,4.09216364,2391.7,2391.4,0.05277108]
[1726589363270,5.83969533,2391.7,2391.4,0.05277108]
[1726589363477,2.4911,2391.5,2391.4,0.05277108]
[1726589363786,2.4911,2391.5,2390.8,6.83679126]
[1726589363787,2.77654414,2391.5,2390.9,4.18245]
[1726589363998,1.31497016,2391.2,2391.0,0.05127385]
[1726589364161,1.31497016,2391.3,2391.0,0.05127385]
[1726589364896,1.31497016,2391.3,2391.0,3.05127385]
[1726589365400,2.3318,2391.1,2391.0,0.05127385]
[1726589365602,2.3318,2391.1,2390.8,3.0]
[1726589366108,2.3318,2391.1,2390.9,0.04655653]
[1726589368679,2.3318,2391.1,2390.9,0.06189449]
[1726589368981,2.3318,2391.1,2390.9,3.0]
[1726589369305,2.87180637,2391.1,2391.0,0.06961605]
[1726589369477,4.62509992,2391.1,2390.6,7.2226857]
[1726589369821,1.31418639,2390.9,2390.6,7.2226857]
[1726589370176,1.31418639,2391.0,2390.6,7.2226857]
[1726589370720,1.31418639,2390.9,2390.6,7.2226857]
[1726589371015,1.31418639,2391.0,2390.8,7.1826]
[1726589371180,4.08509355,2391.1,2390.8,7.1826]
[1726589371181,1.31418639,2391.1,2390.8,11.36521]
[1726589372121,1.31418639,2391.1,2390.9,4.1825]
[1726589372701,1.31418639,2391.1,2390.8,7.18269]
[1726589372904,1.31418639,2391.1,2390.8,3.0]
[1726589373214,3.63548639,2391.0,2390.7,3.0]
[1726589373617,1.31418639,2391.1,2390.7,7.18284]
[1726589373803,3.56758639,2391.2,2390.9,3.0]
[1726589373981,3.56758639,2391.2,2390.9,7.1825]
[1726589376007,3.56758639,2391.2,2390.9,3.0]
[1726589376557,3.56758639,2391.2,2390.9,7.18251]
[1726589377452,2.2534,2391.2,2390.9,7.18251]
[1726589378749,2.2534,2391.2,2390.9,3.0]
[1726589379250,3.56758639,2391.2,2390.9,3.0]
[1726589379457,2.2534,2391.2,2390.9,3.0]
[1726589379755,3.56758639,2391.2,2390.9,3.0]
[1726589379964,2.2534,2391.2,2390.9,7.1825]
[1726589380948,2.2534,2391.2,2390.9,11.36494]
[1726589381320,2.2534,2391.2,2390.9,7.18243]
[1726589381523,3.56758639,2391.2,2391.1,3.0]
[1726589381765,2.2534,2391.2,2391.1,3.0]
[1726589381934,3.56758639,2391.2,2391.1,3.0]
[1726589382979,3.56758639,2391.2,2391.0,3.0]
[1726589384026,3.56758639,2391.2,2391.0,7.18233]
[1726589384427,3.56758639,2391.2,2391.1,4.18217]
[1726589384623,2.2534,2391.2,2391.1,7.18217]
[1726589385269,3.61018639,2391.4,2391.2,4.182]
[1726589385566,3.61018639,2391.4,2391.3,7.18182]
[1726589385567,2.296,2391.4,2391.3,7.18182]
[1726589385739,2.296,2391.4,2391.3,3.0]
[1726589387181,2.296,2391.4,2391.3,7.18182]
[1726589387380,1.75329355,2391.6,2391.4,4.18165]
[1726589387381,3.77348639,2391.6,2391.4,4.18165]
[1726589387689,3.77348639,2391.6,2391.5,3.0]
[1726589387850,3.77348639,2391.6,2391.5,7.18147]
[1726589388042,1.31418639,2391.8,2391.7,8.36224]
[1726589388376,7.42,2392.2,2392.1,7.18042]
[1726589388580,8.70049799,2392.2,2392.1,3.0]
[1726589388739,7.42,2392.2,2392.1,3.0]
[1726589389595,7.42,2392.2,2392.1,7.18042]
[1726589390499,7.42,2392.2,2392.1,3.0]
[1726589391500,3.63168639,2392.4,2392.1,3.0]
[1726589391655,3.63168639,2392.4,2392.1,7.18033]
[1726589391860,1.31418639,2392.6,2392.4,4.1799]
[1726589392199,3.75528639,2392.7,2392.3,4.18004]
[1726589392490,2.4411,2392.7,2392.3,4.18004]
[1726589392695,3.73395799,2392.7,2392.3,4.18004]
[1726589392989,3.73395799,2392.7,2392.2,3.0]
[1726589393237,5.04814438,2392.7,2392.2,7.18013]
[1726589393443,3.73395799,2392.7,2392.2,7.18013]
[1726589394001,1.24681444,2392.6,2392.3,4.18004]
[1726589394200,2.2935,2392.5,2392.2,3.0]
[1726589394541,2.2935,2392.5,2392.0,7.18051]
[1726589394931,2.2935,2392.5,2392.0,3.0]
[1726589395250,2.2935,2392.5,2392.0,7.18058]
[1726589395543,2.95427944,2392.5,2392.0,7.18058]
[1726589396244,2.95427944,2392.5,2392.1,4.18041]
[1726589396546,2.95427944,2392.5,2392.2,3.0]
[1726589396959,2.4134,2392.4,2392.0,7.18051]
[1726589397322,2.4134,2392.4,2392.0,7.1805]
[1726589398523,2.4134,2392.4,2392.0,11.36099]
[1726589398725,2.4134,2392.4,2392.0,7.18049]
[1726589399619,2.4134,2392.4,2392.0,11.361]
[1726589399863,2.4134,2392.4,2392.0,7.18049]
[1726589400060,2.97691803,2392.4,2392.0,3.0]
[1726589400268,2.97691803,2392.4,2391.8,4.18085]
[1726589400472,2.3075,2392.3,2391.6,4.18118]
[1726589400837,2.3075,2392.2,2391.6,8.36232]
[1726589401038,2.3075,2392.1,2391.7,4.18111]
[1726589401231,2.3075,2392.1,2391.8,4.18088]
[1726589401631,2.3075,2392.1,2391.7,4.18099]
[1726589401851,2.3075,2392.1,2391.8,7.18086]
[1726589402031,2.3075,2392.1,2391.9,4.18069]
[1726589402565,2.3075,2392.3,2392.1,4.1803]
[1726589403966,2.3075,2392.3,2392.0,4.18051]
[1726589404372,2.3075,2392.3,2391.9,4.18066]
[1726589404373,2.3075,2392.3,2391.9,4.18076]
[1726589404673,2.3075,2392.3,2392.0,3.0]
[1726589405035,2.53825,2392.3,2391.9,4.18076]
[1726589405255,2.53825,2392.3,2392.0,3.0]
[1726589405466,2.53825,2392.3,2391.8,4.18079]
[1726589405467,2.53825,2392.3,2391.9,3.0]
[1726589406883,2.53825,2392.3,2391.7,7.18099]
[1726589407571,2.53825,2392.3,2391.8,4.18085]
[1726589407778,2.3075,2392.3,2391.8,4.18085]
[1726589407942,2.3075,2392.3,2391.7,7.18099]
[1726589408145,2.3075,2392.3,2391.7,11.36203]
[1726589408872,4.18115,2391.7,2391.1,4.18]
[1726589409179,2.4281,2391.5,2391.1,4.18]
[1726589409673,2.3839,2391.4,2391.0,0.20312603]
[1726589409835,4.18184,2391.3,2390.6,0.0397257]
[1726589410028,2.426,2391.1,2390.6,0.0397257]
[1726589410579,2.426,2391.1,2390.7,4.1827]
[1726589410728,2.426,2391.1,2390.6,0.2426329]
[1726589410936,2.426,2391.1,2390.6,4.2226657]
[1726589411231,2.426,2391.1,2390.6,7.2227557]
[1726589411435,6.36277792,2390.7,2390.6,0.0397257]
[1726589411926,10.54564792,2390.7,2390.6,0.0397257]
[1726589412237,10.54564792,2390.7,2389.9,0.0397257]
[1726589412238,3.93677792,2390.4,2389.9,0.0397257]
[1726589412438,4.18386,2390.2,2389.9,0.0397257]
[1726589412746,14.72697792,2390.0,2389.9,0.0397257]
[1726589412934,4.18482,2389.6,2389.2,0.0397257]
[1726589413130,2.422,2389.4,2389.2,0.0397257]
[1726589415286,6.53672,2389.3,2389.2,0.0397257]
[1726589415577,4.18585,2389.0,2388.4,0.0397257]
[1726589415776,2.3172,2388.8,2388.4,0.0397257]
[1726589416639,4.18648,2388.7,2388.4,0.0397257]
[1726589416885,6.50392,2388.5,2388.4,0.0397257]
[1726589417037,2.3172,2388.5,2388.4,0.0397257]
[1726589419210,6.50392,2388.5,2388.4,0.0397257]
[1726589419511,7.572953,2388.5,2388.4,0.0397257]
[1726589420005,3.386233,2388.5,2388.4,0.0397257]
[1726589421214,0.418585,2388.9,2388.4,4.2265957]
[1726589421215,2.3107,2388.8,2388.4,4.2265957]
[1726589421512,0.418585,2388.9,2388.4,4.2265957]
[1726589421513,6.49591,2389.4,2388.6,4.18638]
[1726589421696,2.3107,2389.4,2388.8,4.18617]
[1726589421915,2.3107,2389.4,2388.4,0.0397257]
[1726589422224,2.3107,2389.4,2388.8,4.18609]
[1726589422402,2.54177,2389.4,2388.8,4.18609]
[1726589423032,2.3107,2389.4,2389.0,4.18584]
[1726589423301,2.3107,2389.4,2388.6,4.85046981]
[1726589423570,9.7456,2389.7,2389.2,4.18536]
[1726589423867,2.3256,2389.7,2389.4,4.18508]
[1726589424241,2.4257,2390.0,2389.6,4.18466]
[1726589425755,2.4257,2390.0,2389.5,4.18494]
[1726589426871,2.4257,2390.0,2389.4,4.18507]
[1726589427045,2.4257,2390.0,2389.4,8.37008]
[1726589427943,2.4257,2390.0,2389.1,5.0]
[1726589427944,3.086647,2390.0,2389.3,4.1853]
[1726589428149,2.4257,2390.0,2389.3,4.1853]
[1726589428898,4.18429,2389.9,2389.1,3.0]
[1726589429039,2.4257,2390.0,2389.1,3.0]
[1726589429040,4.18474,2389.7,2389.1,3.0]
[1726589429245,4.18506,2389.5,2388.8,8.37217]
[1726589429440,4.18506,2389.5,2388.8,8.37216]
[1726589429657,5.252828,2389.5,2388.8,4.18607]
[1726589430057,1.067768,2389.5,2388.9,4.18602]
[1726589430543,5.252748,2389.5,2388.9,7.18598]
[1726589431192,5.252748,2389.5,2388.9,3.0]
[1726589431508,6.47076,2389.4,2388.8,3.0]
[1726589431793,3.0393528,2389.3,2388.7,4.18636]
[1726589431958,7.2246828,2389.3,2388.9,0.07661442]
[1726589432294,7.2246828,2389.3,2389.0,0.07753691]
[1726589432679,7.2246828,2389.3,2388.7,4.18635]
[1726589432844,2.2848,2389.0,2388.8,0.07760094]
[1726589433169,2.2848,2389.0,2388.6,4.18655]
[1726589433691,2.2848,2389.0,2388.7,0.07766956]
[1726589434465,2.2848,2389.0,2388.6,4.18653]
[1726589434672,2.62737943,2389.0,2388.7,0.07778342]
[1726589435168,2.2848,2389.0,2388.7,0.07778342]
[1726589435606,2.2848,2389.0,2388.5,4.18672]
[1726589435806,2.2848,2389.0,2388.8,0.0777514]
[1726589436009,2.2848,2389.0,2388.5,4.18672]
[1726589436214,2.2848,2389.0,2388.9,0.07771938]
[1726589436506,3.04594143,2389.0,2388.9,0.07771938]
[1726589436709,3.04594143,2389.0,2388.5,4.18672]
[1726589436867,3.04594143,2389.0,2388.9,0.07771124]
[1726589437063,3.04594143,2389.0,2388.4,0.0397257]
[1726589437295,4.18615,2388.9,2388.5,0.07819304]
[1726589437609,4.18612,2388.9,2388.5,0.07819304]
[1726589437970,4.18623,2388.8,2388.5,0.07819304]
[1726589438798,4.18612,2388.9,2388.5,0.07819304]
[1726589440219,6.47074,2389.0,2388.5,4.26491304]
[1726589440365,2.2848,2389.0,2388.5,4.26483304]
[1726589440570,3.46452743,2389.0,2388.5,8.45147304]
[1726589440767,3.46452743,2389.0,2388.5,4.26483304]
[1726589441117,2.2848,2389.0,2388.5,4.26483304]
[1726589442216,6.47075,2389.0,2388.5,0.07819304]
[1726589443584,4.18602,2388.9,2388.5,0.07819304]
[1726589444716,6.47065,2389.0,2388.5,0.07819304]
[1726589445014,6.56373,2388.9,2388.5,0.07819304]
[1726589445220,3.452658,2388.9,2388.5,0.07819304]
[1726589445683,7.638778,2388.9,2388.5,0.07819304]
[1726589445873,4.18621,2388.8,2388.5,0.07819304]
[1726589446074,3.452658,2388.9,2388.6,4.18647]
[1726589446376,3.452658,2388.9,2388.5,0.07819304]
[1726589446377,3.452658,2388.9,2388.7,0.07818186]
[1726589446599,0.3452658,2388.8,2388.7,0.07818186]
[1726589446799,4.5316058,2388.8,2388.4,0.0397257]
[1726589447001,4.5316058,2388.8,2388.7,0.07821033]
[1726589447312,4.5316058,2388.8,2388.7,0.07829166]
[1726589447515,4.5316058,2388.8,2388.4,0.0397257]
[1726589447679,5.29592158,2388.7,2388.4,0.0397257]
[1726589448289,2.3541,2388.6,2388.4,0.0397257]
[1726589450199,6.54066,2388.6,2388.4,0.0397257]
[1726589450422,2.3541,2388.6,2388.4,0.0397257]
[1726589450696,3.94397745,2388.5,2388.4,0.0397257]
[1726589450920,5.4110972,2388.5,2388.4,0.0397257]
[1726589452447,16.1567372,2388.5,2388.4,0.0397257]
[1726589452781,19.42633745,2388.5,2388.4,0.0397257]
[1726589453037,6.57912,2388.0,2387.7,0.0397257]
[1726589453399,6.57912,2388.0,2387.8,0.07614452]
[1726589453400,4.18778,2387.9,2387.8,0.07614452]
[1726589453601,4.18778,2387.9,2387.7,0.0397257]
[1726589453602,6.57945,2387.8,2387.7,0.0397257]
[1726589453838,2.3915,2387.8,2387.7,0.0397257]
[1726589454046,6.57945,2387.8,2387.7,0.0397257]
[1726589454403,2.3915,2387.8,2387.7,0.0397257]
[1726589454603,8.05057375,2387.8,2387.7,0.0397257]
[1726589455715,2.3188,2388.3,2387.9,4.18769]
[1726589455901,2.3188,2388.3,2387.7,0.0397257]
[1726589455902,2.3188,2388.3,2387.8,4.18785]
[1726589456913,4.18727,2388.2,2387.7,4.2278157]
[1726589458275,4.18752,2388.1,2387.7,0.0397257]
[1726589458610,4.41914,2388.2,2387.7,0.0397257]
[1726589459223,4.18747,2388.1,2387.7,0.0397257]
[1726589459422,6.50649,2388.0,2387.7,0.0397257]
[1726589459627,0.650649,2387.9,2387.7,0.0397257]
[1726589459813,4.18795,2387.8,2387.7,0.0397257]
[1726589460014,8.3759,2387.8,2387.7,0.0397257]
[1726589460351,4.838439,2387.9,2387.7,0.0397257]
[1726589460558,1.1344989,2387.8,2387.7,0.0397257]
[1726589460759,4.18795,2387.8,2387.7,0.0397257]
[1726589461174,6.46265,2387.8,2387.7,0.11082831]
[1726589461327,6.46265,2387.8,2387.7,0.0397257]
[1726589461328,11.2006,2387.8,2387.7,0.0397257]
[1726589461671,2.2747,2387.8,2387.7,0.11082831]
[1726589461825,2.9860229,2387.8,2387.7,0.0397257]
[1726589462031,0.650649,2387.9,2387.7,0.0397257]
[1726589462339,2.2747,2388.1,2387.8,0.07119674]
[1726589462767,2.2747,2388.1,2387.7,0.0397257]
[1726589462982,2.2747,2388.1,2387.9,0.07116469]
[1726589463281,2.2747,2388.1,2388.0,0.07113265]
[1726589463568,2.2747,2388.1,2387.7,0.0397257]
[1726589463569,1.088126,2388.1,2387.7,0.0397257]
[1726589463728,0.23188,2388.2,2388.0,0.07113265]
[1726589463926,0.23188,2388.2,2387.7,4.2277557]
[1726589464154,2.3712,2388.3,2388.1,0.07110061]
[1726589464375,2.3712,2388.3,2387.7,0.0397257]
[1726589464376,4.18795,2387.8,2387.7,0.0397257]
[1726589464663,4.18789,2387.9,2387.7,0.0397257]
[1726589464867,2.3712,2388.2,2387.7,0.0397257]
[1726589464868,0.72278718,2388.1,2387.7,0.0397257]
[1726589465069,2.3712,2388.2,2387.8,4.18795]
[1726589465282,2.3209,2388.4,2388.0,4.18759]
[1726589465578,4.73883224,2388.8,2387.8,4.18782]
[1726589465579,2.3209,2388.8,2388.2,4.18713]
[1726589465788,2.3209,2388.8,2388.5,4.18664]
[1726589466084,6.64198,2389.1,2388.5,4.18664]
[1726589466279,0.72286364,2389.0,2388.7,4.18636]
[1726589466429,2.4563,2389.1,2388.5,4.18655]
[1726589466769,2.4563,2389.1,2388.7,4.18634]
[1726589466976,5.48927418,2389.4,2388.7,4.18634]
[1726589467157,2.3824,2389.3,2388.7,4.18626]
[1726589467728,5.48911418,2389.5,2389.0,4.18575]
[1726589467729,1.30412418,2389.5,2389.0,4.18575]
[1726589467933,1.30412418,2389.5,2388.4,3.0]
[1726589467934,0.96100264,2389.5,2388.9,6.1859]
[1726589468696,0.96100264,2389.5,2388.9,4.1859]
[1726589468998,0.96100264,2389.5,2388.7,7.1863]
[1726589469155,6.53279,2389.4,2388.6,3.0]
[1726589469357,1.29830468,2389.3,2388.7,4.18636]
[1726589469557,1.29830468,2389.3,2388.8,3.0]
[1726589469952,5.48364468,2389.3,2388.6,3.0]
[1726589470569,6.78776886,2389.3,2388.6,3.0]
[1726589470905,6.78777886,2389.3,2388.6,3.0]
[1726589471072,2.3475,2389.1,2388.7,0.07055854]
[1726589471572,3.65162418,2389.1,2388.7,0.07055854]
[1726589471790,3.65162418,2389.1,2388.4,4.18689]
[1726589471989,1.30412418,2389.0,2388.8,0.07052651]
[1726589472198,3.65162418,2389.1,2388.4,4.18689]
[1726589472410,5.06603764,2389.1,2388.9,0.07049449]
[1726589472566,1.30412418,2389.0,2388.4,4.18689]
[1726589472766,1.30412418,2389.0,2388.5,4.18671]
[1726589473606,1.30412418,2389.0,2388.5,4.18664]
[1726589473770,1.30412418,2388.9,2388.5,4.18664]
[1726589474378,1.30412418,2388.9,2388.3,7.18694]
[1726589474379,1.30412418,2388.9,2388.4,3.0]
[1726589474592,1.98461117,2388.9,2388.4,3.0]
[1726589474914,6.17066117,2388.9,2388.4,3.0]
[1726589476310,2.4162,2388.4,2387.9,4.18777]
[1726589476605,2.4162,2388.4,2387.8,8.37566]
[1726589476779,2.4162,2388.4,2387.9,4.18761]
[1726589477312,2.4162,2388.4,2388.0,4.1876]
[1726589477513,2.4162,2388.4,2388.1,4.1874]
[1726589477715,2.4162,2388.4,2388.2,4.1871]
[1726589478089,1.30412418,2388.8,2388.2,4.1871]
[1726589478090,2.3716,2388.7,2388.3,4.18707]
[1726589478287,2.98110434,2388.7,2388.2,4.1871]
[1726589479305,7.16749434,2388.7,2388.1,4.18739]
[1726589479873,7.16749434,2388.7,2388.0,4.18751]
[1726589480196,6.67085,2388.6,2388.0,4.18751]
[1726589480396,0.72803543,2388.5,2387.9,7.18777]
[1726589480603,2.3182,2388.4,2387.9,7.18768]
[1726589480809,2.3182,2388.4,2388.1,4.18732]
[1726589481108,2.3182,2388.4,2388.1,4.18742]
[1726589481320,2.3182,2388.4,2388.0,4.1875]
[1726589481612,0.23182,2388.3,2387.7,7.2277257]
[1726589481775,3.63005121,2388.4,2387.7,2.0397257]
[1726589482117,3.63005121,2388.4,2388.3,4.18707]
[1726589482418,1.31185121,2388.4,2388.3,4.18707]
[1726589482629,1.31185121,2388.4,2388.1,4.18732]
[1726589482792,1.31185121,2388.4,2388.2,4.18716]
[1726589483114,1.61794983,2388.4,2388.0,7.18743]
[1726589483353,2.2859,2388.3,2388.0,7.18743]
[1726589483913,1.61794983,2388.4,2388.2,4.18725]
[1726589484119,1.31185121,2388.4,2388.2,8.3743]
[1726589484413,1.31185121,2388.4,2388.3,4.18707]
[1726589484817,1.31185121,2388.4,2388.2,4.18715]
[1726589485782,1.31185121,2388.4,2388.2,4.18712]
[1726589486322,1.31185121,2388.4,2388.3,8.44275336]
[1726589486475,1.31185121,2388.4,2388.3,11.44275336]
[1726589487024,5.50378616,2388.8,2388.3,3.06861336]
[1726589487249,1.31185121,2388.7,2388.6,4.18655]
[1726589487455,3.75465121,2388.8,2388.6,4.18655]
[1726589487651,3.75465121,2388.8,2388.6,4.25518931]
[1726589488149,3.75465121,2388.8,2388.6,0.06863931]
[1726589488364,1.31185121,2388.7,2388.4,4.18682]
[1726589488551,3.75465121,2388.8,2388.4,4.18682]
[1726589488752,1.31185121,2388.7,2388.5,0.06867134]
[1726589489049,3.75465121,2388.8,2388.5,0.06867134]
[1726589489211,4.72361583,2388.8,2388.5,0.06867134]
[1726589489951,2.4428,2388.8,2388.5,4.25527134]
[1726589490150,3.75465121,2388.8,2388.5,4.25527134]
[1726589490659,2.4428,2388.8,2388.5,4.25527134]
[1726589490864,1.31185121,2388.9,2388.6,4.18652]
[1726589491094,1.31185121,2389.2,2388.7,5.0]
[1726589491244,1.31185121,2389.4,2388.9,4.186]
[1726589491444,1.31185121,2389.5,2389.3,4.18532]
[1726589491655,1.31185121,2389.5,2389.4,4.18515]
[1726589491856,2.377,2389.6,2389.5,4.18497]
[1726589492083,1.31212513,2389.6,2389.4,4.25342318]
[1726589492240,1.31212513,2389.7,2389.5,0.06835118]
[1726589492445,3.69712513,2389.8,2389.5,0.06835118]
[1726589492644,4.46046463,2389.8,2389.5,0.06835118]
[1726589492895,1.31212513,2389.7,2389.5,0.06835118]
[1726589493240,0.87401448,2389.6,2389.5,0.06835118]
[1726589493446,0.87401448,2389.7,2389.5,0.06835118]
[1726589494170,4.02235398,2389.8,2389.5,0.06835118]
[1726589494374,0.87401448,2389.7,2389.5,0.06835118]
[1726589494572,0.87401448,2390.0,2389.5,0.06835118]
[1726589494788,3.36441448,2390.1,2389.8,4.18433]
[1726589494991,2.4904,2390.1,2389.8,4.18433]
[1726589495292,2.4904,2390.1,2389.9,0.06822319]
[1726589495470,2.95805396,2390.1,2389.9,4.25243319]